[Event "*** Titled Tuesday Blitz"]
[Site "Chess.com"]
[Date "2020.05.12"]
[Round "10"]
[White "levallem"]
[Black "GMKrikor"]
[Result "0-1"]
[WhiteElo "2173"]
[BlackElo "2781"]
[TimeControl "180+1"]
[EndTime "11:54:01 PDT"]
[Termination "GMKrikor won by resignation"]

1. d4 {[%clk 0:03:00.9]} 1... Nf6 {[%clk 0:02:59.7]} 2. c4 {[%clk 0:03:00.6]}
2... g6 {[%clk 0:03:00.3]} 3. Nf3 {[%clk 0:03:00.4]} 3... Bg7 {[%clk 0:03:00.1]}
4. Nc3 {[%clk 0:03:01]} 4... d5 {[%clk 0:03:00]} 5. cxd5 {[%clk 0:03:01.9]} 5...
Nxd5 {[%clk 0:03:00.2]} 6. e4 {[%clk 0:03:01.7]} 6... Nxc3 {[%clk 0:03:00.9]} 7.
bxc3 {[%clk 0:03:02.2]} 7... c5 {[%clk 0:03:01.6]} 8. Be3 {[%clk 0:03:00.4]}
8... Qa5 {[%clk 0:03:01.8]} 9. Qd2 {[%clk 0:02:55.7]} 9... Nc6 {[%clk
0:03:02.3]} 10. Rd1 {[%clk 0:02:51.1]} 10... O-O {[%clk 0:02:58.2]} 11. Bc4
{[%clk 0:02:39.9]} 11... Bg4 {[%clk 0:02:52.4]} 12. O-O {[%clk 0:02:29.6]} 12...
Rad8 {[%clk 0:02:29.8]} 13. Bd5 {[%clk 0:02:28.7]} 13... Bxf3 {[%clk 0:02:20.8]}
14. gxf3 {[%clk 0:02:27.9]} 14... cxd4 {[%clk 0:02:13.1]} 15. cxd4 {[%clk
0:02:22]} 15... Rxd5 {[%clk 0:02:09.8]} 16. exd5 {[%clk 0:02:16.8]} 16... Qxd5
{[%clk 0:02:10.7]} 17. Kg2 {[%clk 0:01:57.6]} 17... Rd8 {[%clk 0:02:05.9]} 18.
Qe2 {[%clk 0:01:49.7]} 18... Bxd4 {[%clk 0:01:55.3]} 19. Rd2 {[%clk 0:01:28.3]}
19... e5 {[%clk 0:01:49]} 20. Rb1 {[%clk 0:01:20.8]} 20... Rd7 {[%clk
0:01:34.2]} 21. Bxd4 {[%clk 0:01:08.9]} 21... exd4 {[%clk 0:01:13.3]} 22. Rb5
{[%clk 0:00:56.7]} 22... Qd6 {[%clk 0:01:09.1]} 23. Rd3 {[%clk 0:00:24.3]} 23...
Re7 {[%clk 0:01:04.4]} 24. Qd2 {[%clk 0:00:24.3]} 24... Qf6 {[%clk 0:00:56.6]}
25. Rd5 {[%clk 0:00:20.3]} 25... Ne5 {[%clk 0:00:39.1]} 26. Rd8+ {[%clk
0:00:12]} 26... Kg7 {[%clk 0:00:38.7]} 27. R3xd4 {[%clk 0:00:10.1]} 27... Nxf3
{[%clk 0:00:20.5]} 28. Qf4 {[%clk 0:00:07.6]} 28... Qxf4 {[%clk 0:00:04]} 29.
Rxf4 {[%clk 0:00:07.2]} 29... Ne5 {[%clk 0:00:04.9]} 30. Rb4 {[%clk 0:00:07.1]}
30... Nc6 {[%clk 0:00:04.9]} 31. Rb5 {[%clk 0:00:06.6]} 31... Nxd8 {[%clk
0:00:05.1]} 32. Rd5 {[%clk 0:00:06.1]} 32... Nc6 {[%clk 0:00:05.2]} 33. Rd3
{[%clk 0:00:06.7]} 33... Re5 {[%clk 0:00:05.6]} 34. a4 {[%clk 0:00:07.6]} 34...
Ra5 {[%clk 0:00:05.6]} 35. Rb3 {[%clk 0:00:08.2]} 35... b6 {[%clk 0:00:05.8]}
36. Ra3 {[%clk 0:00:07.9]} 36... b5 {[%clk 0:00:04.9]} 37. Rc3 {[%clk
0:00:08.1]} 37... bxa4 {[%clk 0:00:04.9]} 38. Rxc6 {[%clk 0:00:08]} 38... a3
{[%clk 0:00:05.3]} 39. Rc2 {[%clk 0:00:08.9]} 39... a2 {[%clk 0:00:05.4]} 40.
Rxa2 {[%clk 0:00:08]} 40... Rxa2 {[%clk 0:00:04.8]} 41. h4 {[%clk 0:00:08.5]}
41... Ra4 {[%clk 0:00:05.7]} 42. h5 {[%clk 0:00:08.4]} 0-1

[Event "*** Titled Tuesday Blitz"]
[Site "Chess.com"]
[Date "2020.05.12"]
[Round "10"]
[White "tacticthunder"]
[Black "rpragchess"]
[Result "1-0"]
[WhiteElo "2634"]
[BlackElo "2858"]
[TimeControl "180+1"]
[EndTime "11:54:02 PDT"]
[Termination "tacticthunder won by checkmate"]

1. e4 {[%clk 0:02:55.3]} 1... c5 {[%clk 0:02:59.8]} 2. Nf3 {[%clk 0:02:54.9]}
2... e6 {[%clk 0:02:58]} 3. d4 {[%clk 0:02:55.3]} 3... cxd4 {[%clk 0:02:58.9]}
4. Nxd4 {[%clk 0:02:55.4]} 4... a6 {[%clk 0:02:59.8]} 5. c4 {[%clk 0:02:54.9]}
5... Nf6 {[%clk 0:02:59.2]} 6. Nc3 {[%clk 0:02:55.4]} 6... Qc7 {[%clk
0:02:59.5]} 7. a3 {[%clk 0:02:55]} 7... b6 {[%clk 0:02:59.8]} 8. Be2 {[%clk
0:02:55.6]} 8... Bb7 {[%clk 0:03:00.3]} 9. f3 {[%clk 0:02:56.2]} 9... d6 {[%clk
0:03:00.7]} 10. O-O {[%clk 0:02:55.6]} 10... Be7 {[%clk 0:03:00.5]} 11. Be3
{[%clk 0:02:55.9]} 11... O-O {[%clk 0:03:01.1]} 12. Rc1 {[%clk 0:02:55.5]} 12...
Nbd7 {[%clk 0:03:01.7]} 13. Qe1 {[%clk 0:02:54.6]} 13... Rac8 {[%clk 0:03:02.4]}
14. Qf2 {[%clk 0:02:55]} 14... Qb8 {[%clk 0:03:02.4]} 15. Rfd1 {[%clk
0:02:55.4]} 15... Bd8 {[%clk 0:03:02.6]} 16. b4 {[%clk 0:02:55.7]} 16... Bc7
{[%clk 0:03:02.9]} 17. g4 {[%clk 0:02:56.3]} 17... d5 {[%clk 0:02:33.2]} 18.
cxd5 {[%clk 0:02:52.4]} 18... exd5 {[%clk 0:02:28.9]} 19. g5 {[%clk 0:02:46.8]}
19... Nh5 {[%clk 0:02:28.7]} 20. Nxd5 {[%clk 0:02:47.1]} 20... Bxd5 {[%clk
0:02:25.2]} 21. exd5 {[%clk 0:02:48]} 21... Nf4 {[%clk 0:02:22.3]} 22. Bf1
{[%clk 0:02:33.1]} 22... Bd6 {[%clk 0:02:11.2]} 23. Nc6 {[%clk 0:02:23.4]} 23...
Qb7 {[%clk 0:02:02.1]} 24. Bxf4 {[%clk 0:01:55.3]} 24... Bxf4 {[%clk 0:02:00.4]}
25. Ne7+ {[%clk 0:01:55.6]} 25... Kh8 {[%clk 0:02:00.9]} 26. Rxc8 {[%clk
0:01:55.9]} 26... Rxc8 {[%clk 0:02:01.2]} 27. Nxc8 {[%clk 0:01:56.3]} 27... Qxc8
{[%clk 0:02:02.1]} 28. Bh3 {[%clk 0:01:27.3]} 28... Qc3 {[%clk 0:01:59.3]} 29.
Qe1 {[%clk 0:01:12.3]} 29... Be3+ {[%clk 0:01:35.3]} 30. Kh1 {[%clk 0:01:07.8]}
30... Qc2 {[%clk 0:01:30.4]} 31. Bxd7 {[%clk 0:01:01.1]} 31... g6 {[%clk
0:01:30.7]} 32. Bh3 {[%clk 0:00:52.4]} 32... Bf4 {[%clk 0:01:28.6]} 33. Bg2
{[%clk 0:00:52.7]} 33... Bd6 {[%clk 0:01:24.2]} 34. Qd2 {[%clk 0:00:49.8]} 34...
Qf5 {[%clk 0:01:22.6]} 35. Qd4+ {[%clk 0:00:49]} 35... Be5 {[%clk 0:01:22.7]}
36. Qe3 {[%clk 0:00:46]} 36... Bf4 {[%clk 0:01:19.4]} 37. Qe4 {[%clk 0:00:18.9]}
37... Qxg5 {[%clk 0:01:19.3]} 38. d6 {[%clk 0:00:12]} 38... Qh4 {[%clk
0:01:19.4]} 39. Qd4+ {[%clk 0:00:11.4]} 39... Kg8 {[%clk 0:01:08.7]} 40. Qxf4
{[%clk 0:00:10.5]} 40... Qxf4 {[%clk 0:01:05.2]} 41. d7 {[%clk 0:00:10.6]} 41...
h5 {[%clk 0:01:04.9]} 42. d8=Q+ {[%clk 0:00:10.4]} 42... Kh7 {[%clk 0:01:05.8]}
43. Qd4 {[%clk 0:00:10.8]} 43... Qf5 {[%clk 0:01:05.5]} 44. Qe4 {[%clk 0:00:11]}
44... Qf6 {[%clk 0:01:05.4]} 45. Re1 {[%clk 0:00:11.5]} 45... h4 {[%clk
0:01:05]} 46. Qe5 {[%clk 0:00:11.8]} 46... Qc6 {[%clk 0:01:05.2]} 47. f4 {[%clk
0:00:10.8]} 47... Qc4 {[%clk 0:01:03.2]} 48. f5 {[%clk 0:00:10.8]} 48... g5
{[%clk 0:00:59.9]} 49. f6 {[%clk 0:00:10.2]} 49... Kh6 {[%clk 0:01:00.1]} 50.
Qe4 {[%clk 0:00:08.2]} 50... Qc3 {[%clk 0:00:59.3]} 51. Rf1 {[%clk 0:00:08.1]}
51... h3 {[%clk 0:00:58.5]} 52. Bf3 {[%clk 0:00:08.4]} 52... Qxf6 {[%clk
0:00:50.4]} 53. Qg4 {[%clk 0:00:07.2]} 53... Qc3 {[%clk 0:00:47.4]} 54. Qh5+
{[%clk 0:00:06.4]} 54... Kg7 {[%clk 0:00:46.7]} 55. Qxg5+ {[%clk 0:00:07.3]}
55... Kf8 {[%clk 0:00:45.8]} 56. Qd8+ {[%clk 0:00:07.4]} 56... Kg7 {[%clk
0:00:46.5]} 57. Rg1+ {[%clk 0:00:08]} 57... Kh6 {[%clk 0:00:46.3]} 58. Qh4#
{[%clk 0:00:08.1]} 1-0

[Event "*** Titled Tuesday Blitz"]
[Site "Chess.com"]
[Date "2020.05.12"]
[Round "10"]
[White "CyberneticLion"]
[Black "GMaka"]
[Result "0-1"]
[WhiteElo "2516"]
[BlackElo "2378"]
[TimeControl "180+1"]
[EndTime "11:54:02 PDT"]
[Termination "GMaka won by checkmate"]

1. e4 {[%clk 0:03:00.9]} 1... c6 {[%clk 0:02:56.9]} 2. d4 {[%clk 0:02:52.4]}
2... d5 {[%clk 0:02:51.1]} 3. exd5 {[%clk 0:02:53.3]} 3... cxd5 {[%clk
0:02:51.2]} 4. c4 {[%clk 0:02:54.2]} 4... Nf6 {[%clk 0:02:51.8]} 5. Nc3 {[%clk
0:02:54.7]} 5... g6 {[%clk 0:02:51.3]} 6. cxd5 {[%clk 0:02:48.5]} 6... Bg7
{[%clk 0:02:51.4]} 7. Bc4 {[%clk 0:02:47.6]} 7... O-O {[%clk 0:02:51.3]} 8. Nge2
{[%clk 0:02:48.2]} 8... Nbd7 {[%clk 0:02:37.8]} 9. Nf4 {[%clk 0:02:47.2]} 9...
Nb6 {[%clk 0:02:35]} 10. Bb3 {[%clk 0:02:47.1]} 10... g5 {[%clk 0:02:18]} 11.
Nfe2 {[%clk 0:02:42]} 11... h6 {[%clk 0:02:15.5]} 12. h4 {[%clk 0:02:41.9]}
12... g4 {[%clk 0:02:15.3]} 13. Nf4 {[%clk 0:02:41]} 13... Bf5 {[%clk
0:02:11.8]} 14. Be3 {[%clk 0:02:34.2]} 14... Rc8 {[%clk 0:02:07]} 15. Rc1 {[%clk
0:02:28]} 15... a6 {[%clk 0:01:45.3]} 16. O-O {[%clk 0:02:21.1]} 16... Rc7
{[%clk 0:01:43.3]} 17. Qd2 {[%clk 0:02:20]} 17... h5 {[%clk 0:01:34.7]} 18. Na4
{[%clk 0:02:13.1]} 18... Nxa4 {[%clk 0:01:10.2]} 19. Rxc7 {[%clk 0:02:11.1]}
19... Qxc7 {[%clk 0:01:11.1]} 20. Bxa4 {[%clk 0:02:10.5]} 20... Qd6 {[%clk
0:01:07.5]} 21. Bb3 {[%clk 0:02:08.2]} 21... Be4 {[%clk 0:01:01.5]} 22. Rc1
{[%clk 0:02:01.8]} 22... Rd8 {[%clk 0:00:42.6]} 23. Qa5 {[%clk 0:02:00.2]} 23...
Bxd5 {[%clk 0:00:26.6]} 24. Bxd5 {[%clk 0:01:57]} 24... Nxd5 {[%clk 0:00:27.5]}
25. Nxh5 {[%clk 0:01:22.9]} 25... g3 {[%clk 0:00:27.1]} 26. Nxg7 {[%clk
0:01:16.7]} 26... Kxg7 {[%clk 0:00:28]} 27. Qc5 {[%clk 0:01:06.8]} 27... gxf2+
{[%clk 0:00:17.5]} 28. Bxf2 {[%clk 0:00:54.3]} 28... Qf4 {[%clk 0:00:16.1]} 29.
Re1 {[%clk 0:00:48.4]} 29... Rd6 {[%clk 0:00:15.3]} 30. Qc1 {[%clk 0:00:41.9]}
30... Qxc1 {[%clk 0:00:14]} 31. Rxc1 {[%clk 0:00:42.8]} 31... Nf4 {[%clk
0:00:14.5]} 32. Rd1 {[%clk 0:00:40.2]} 32... e5 {[%clk 0:00:11.7]} 33. Kf1
{[%clk 0:00:35.9]} 33... e4 {[%clk 0:00:08.4]} 34. b3 {[%clk 0:00:25.6]} 34...
Nd5 {[%clk 0:00:07.7]} 35. Re1 {[%clk 0:00:24.2]} 35... f5 {[%clk 0:00:07.3]}
36. Bg3 {[%clk 0:00:23.3]} 36... Rc6 {[%clk 0:00:07.3]} 37. Be5+ {[%clk
0:00:23.1]} 37... Kg6 {[%clk 0:00:07.7]} 38. g4 {[%clk 0:00:20.7]} 38... fxg4
{[%clk 0:00:06.4]} 39. Rxe4 {[%clk 0:00:20.5]} 39... Kh5 {[%clk 0:00:07.1]} 40.
Re2 {[%clk 0:00:18.6]} 40... Kxh4 {[%clk 0:00:06.4]} 41. Rh2+ {[%clk 0:00:17.5]}
41... Kg5 {[%clk 0:00:07.1]} 42. Rh8 {[%clk 0:00:18.1]} 42... Rc1+ {[%clk
0:00:06.9]} 43. Ke2 {[%clk 0:00:17.8]} 43... Rc2+ {[%clk 0:00:07.8]} 44. Kd3
{[%clk 0:00:17.7]} 44... Rxa2 {[%clk 0:00:07.2]} 45. Rd8 {[%clk 0:00:17.1]}
45... Nf4+ {[%clk 0:00:06.4]} 46. Ke4 {[%clk 0:00:17.2]} 46... Re2# {[%clk
0:00:06.2]} 0-1

[Event "*** Titled Tuesday Blitz"]
[Site "Chess.com"]
[Date "2020.05.12"]
[Round "10"]
[White "Xtrmntr78"]
[Black "larisakalinina"]
[Result "0-1"]
[WhiteElo "2337"]
[BlackElo "2013"]
[TimeControl "180+1"]
[EndTime "11:54:03 PDT"]
[Termination "larisakalinina won on time"]

1. c4 {[%clk 0:03:00.9]} 1... e5 {[%clk 0:02:44.5]} 2. Nc3 {[%clk 0:02:52.7]}
2... Nc6 {[%clk 0:02:41.8]} 3. Nf3 {[%clk 0:02:52.1]} 3... g6 {[%clk 0:02:39.8]}
4. g3 {[%clk 0:02:51.2]} 4... Bg7 {[%clk 0:02:38.8]} 5. Bg2 {[%clk 0:02:51.7]}
5... d6 {[%clk 0:02:33.3]} 6. Rb1 {[%clk 0:02:49.7]} 6... f5 {[%clk 0:02:31.5]}
7. O-O {[%clk 0:02:48.5]} 7... e4 {[%clk 0:02:29.3]} 8. Ne1 {[%clk 0:02:47.7]}
8... Nf6 {[%clk 0:02:28.6]} 9. d3 {[%clk 0:02:47.3]} 9... exd3 {[%clk
0:02:24.2]} 10. Nxd3 {[%clk 0:02:46.7]} 10... O-O {[%clk 0:02:24]} 11. b4 {[%clk
0:02:45.5]} 11... Ne5 {[%clk 0:02:06.2]} 12. Nf4 {[%clk 0:02:37.9]} 12... Kh8
{[%clk 0:01:53.8]} 13. Qb3 {[%clk 0:02:25.1]} 13... c6 {[%clk 0:01:48.9]} 14.
Rd1 {[%clk 0:02:22.2]} 14... g5 {[%clk 0:01:43.7]} 15. Nd3 {[%clk 0:02:21.6]}
15... Qe7 {[%clk 0:01:41.6]} 16. Bxg5 {[%clk 0:02:16.4]} 16... Be6 {[%clk
0:01:33.4]} 17. Nxe5 {[%clk 0:01:53.8]} 17... dxe5 {[%clk 0:01:31]} 18. b5
{[%clk 0:01:53.6]} 18... Qc5 {[%clk 0:01:11.7]} 19. bxc6 {[%clk 0:01:50.3]}
19... bxc6 {[%clk 0:01:08.4]} 20. Qb4 {[%clk 0:01:39.5]} 20... Qxc4 {[%clk
0:00:56.4]} 21. Qxc4 {[%clk 0:01:35.5]} 21... Bxc4 {[%clk 0:00:55.1]} 22. Bxc6
{[%clk 0:01:32.2]} 22... Rac8 {[%clk 0:00:54.2]} 23. Bb7 {[%clk 0:01:31.8]}
23... Rc7 {[%clk 0:00:50]} 24. Bxf6 {[%clk 0:01:26.6]} 24... Bxf6 {[%clk
0:00:47.2]} 25. Nd5 {[%clk 0:01:26.2]} 25... Bxd5 {[%clk 0:00:47]} 26. Bxd5
{[%clk 0:01:24.9]} 26... Rc2 {[%clk 0:00:38.4]} 27. e3 {[%clk 0:01:16.3]} 27...
Rd8 {[%clk 0:00:35.6]} 28. Bb3 {[%clk 0:01:15.2]} 28... Rxd1+ {[%clk 0:00:30.9]}
29. Rxd1 {[%clk 0:01:14.8]} 29... Rb2 {[%clk 0:00:28]} 30. Rd6 {[%clk
0:01:13.9]} 30... Kg7 {[%clk 0:00:19.9]} 31. Rd7+ {[%clk 0:01:12.1]} 31... Kg6
{[%clk 0:00:19.3]} 32. Bg8 {[%clk 0:00:59.5]} 32... h5 {[%clk 0:00:18.1]} 33.
Bh7+ {[%clk 0:00:57]} 33... Kg5 {[%clk 0:00:16.5]} 34. Kg2 {[%clk 0:00:17.7]}
34... f4 {[%clk 0:00:15.1]} 35. exf4+ {[%clk 0:00:16.1]} 35... exf4 {[%clk
0:00:15]} 36. Rd5+ {[%clk 0:00:15.7]} 36... Kh6 {[%clk 0:00:14.6]} 37. Bg8
{[%clk 0:00:15]} 37... a5 {[%clk 0:00:13.2]} 38. Bf7 {[%clk 0:00:10.5]} 38... h4
{[%clk 0:00:09.5]} 39. gxh4 {[%clk 0:00:09.5]} 39... Kg7 {[%clk 0:00:06.3]} 0-1

[Event "*** Titled Tuesday Blitz"]
[Site "Chess.com"]
[Date "2020.05.12"]
[Round "10"]
[White "SlovenskiZmaj"]
[Black "PavlovDanila"]
[Result "0-1"]
[WhiteElo "2528"]
[BlackElo "2691"]
[TimeControl "180+1"]
[EndTime "11:54:04 PDT"]
[Termination "PavlovDanila won by resignation"]

1. e4 {[%clk 0:03:00.9]} 1... e6 {[%clk 0:03:00.1]} 2. Nc3 {[%clk 0:03:00.3]}
2... d5 {[%clk 0:03:01]} 3. d3 {[%clk 0:03:01.2]} 3... Nf6 {[%clk 0:03:00.8]} 4.
e5 {[%clk 0:03:01.2]} 4... Nfd7 {[%clk 0:03:00.7]} 5. f4 {[%clk 0:03:01.9]} 5...
c5 {[%clk 0:03:01.1]} 6. Nf3 {[%clk 0:03:02.5]} 6... Nc6 {[%clk 0:03:01.5]} 7.
g3 {[%clk 0:03:03]} 7... a6 {[%clk 0:03:00.8]} 8. Bg2 {[%clk 0:03:03.4]} 8... b5
{[%clk 0:03:01.3]} 9. O-O {[%clk 0:03:04]} 9... Bb7 {[%clk 0:03:01.2]} 10. g4
{[%clk 0:03:03.9]} 10... Be7 {[%clk 0:03:00.9]} 11. Ne2 {[%clk 0:03:01.9]} 11...
h5 {[%clk 0:03:00.4]} 12. g5 {[%clk 0:03:01.7]} 12... g6 {[%clk 0:03:00.3]} 13.
h4 {[%clk 0:03:02]} 13... O-O {[%clk 0:03:00]} 14. Ng3 {[%clk 0:02:58.1]} 14...
Kg7 {[%clk 0:02:56.3]} 15. c3 {[%clk 0:02:58.5]} 15... Qb6 {[%clk 0:02:48.9]}
16. Be3 {[%clk 0:02:56.9]} 16... d4 {[%clk 0:02:45.2]} 17. Bf2 {[%clk
0:02:52.1]} 17... Rad8 {[%clk 0:02:44.5]} 18. Qe2 {[%clk 0:02:45.2]} 18... Rfe8
{[%clk 0:02:41.4]} 19. Ne4 {[%clk 0:02:35.3]} 19... Qa5 {[%clk 0:02:36.2]} 20.
a3 {[%clk 0:02:00.6]} 20... Qa4 {[%clk 0:02:24.9]} 21. Rfb1 {[%clk 0:01:32]}
21... dxc3 {[%clk 0:02:18.6]} 22. bxc3 {[%clk 0:01:29.8]} 22... Nb6 {[%clk
0:02:18.3]} 23. Bxc5 {[%clk 0:01:09.4]} 23... Nd5 {[%clk 0:02:15.3]} 24. Qd2
{[%clk 0:01:03.6]} 24... Na5 {[%clk 0:02:08.2]} 25. Nf6 {[%clk 0:00:51.4]} 25...
Bxc5+ {[%clk 0:02:07.1]} 26. d4 {[%clk 0:00:51.9]} 26... Bb6 {[%clk 0:01:56.9]}
27. Nxe8+ {[%clk 0:00:50.8]} 27... Rxe8 {[%clk 0:01:57.8]} 28. Ra2 {[%clk
0:00:30.1]} 28... Rc8 {[%clk 0:01:52.3]} 29. Rb4 {[%clk 0:00:27.1]} 29... Nxb4
{[%clk 0:01:37.5]} 30. axb4 {[%clk 0:00:28]} 30... Qb3 {[%clk 0:01:31.6]} 31.
bxa5 {[%clk 0:00:27.6]} 31... Bd8 {[%clk 0:01:22.6]} 32. Rc2 {[%clk 0:00:18.8]}
32... Bxa5 {[%clk 0:01:21]} 33. Ne1 {[%clk 0:00:18.8]} 33... Bxg2 {[%clk
0:01:20.1]} 34. Nxg2 {[%clk 0:00:19.7]} 34... Rxc3 {[%clk 0:01:19.3]} 35. Rxc3
{[%clk 0:00:20.1]} 35... Qxc3 {[%clk 0:01:18.1]} 36. Qa2 {[%clk 0:00:17.5]}
36... Qxd4+ {[%clk 0:01:15.7]} 37. Kh2 {[%clk 0:00:17.8]} 37... Qb6 {[%clk
0:00:52.1]} 38. Ne3 {[%clk 0:00:14.5]} 38... Qxe3 {[%clk 0:00:46.1]} 39. Qxa5
{[%clk 0:00:15]} 39... Qxf4+ {[%clk 0:00:45.8]} 40. Kg2 {[%clk 0:00:15.5]} 40...
Qg4+ {[%clk 0:00:46]} 41. Kf1 {[%clk 0:00:14.9]} 41... Qf4+ {[%clk 0:00:44.3]}
42. Kg2 {[%clk 0:00:14.7]} 42... Qxe5 {[%clk 0:00:44.1]} 43. Qxa6 {[%clk
0:00:15.2]} 43... Qe4+ {[%clk 0:00:43.5]} 44. Kg1 {[%clk 0:00:15.3]} 44... Qg4+
{[%clk 0:00:36.2]} 45. Kf1 {[%clk 0:00:14.6]} 45... Qxh4 {[%clk 0:00:35.2]} 46.
Qxb5 {[%clk 0:00:15.1]} 46... Qf4+ {[%clk 0:00:34]} 47. Kg1 {[%clk 0:00:15.4]}
47... e5 {[%clk 0:00:32.3]} 48. Kh1 {[%clk 0:00:15.4]} 48... Qxg5 {[%clk
0:00:31.3]} 49. Qe2 {[%clk 0:00:15.9]} 49... h4 {[%clk 0:00:30.9]} 50. Qe4
{[%clk 0:00:12.3]} 50... h3 {[%clk 0:00:27.5]} 51. Qe2 {[%clk 0:00:09.5]} 51...
Qg2+ {[%clk 0:00:27.4]} 52. Qxg2 {[%clk 0:00:10]} 52... hxg2+ {[%clk 0:00:28.3]}
53. Kxg2 {[%clk 0:00:10.6]} 53... f5 {[%clk 0:00:28.4]} 0-1

[Event "*** Titled Tuesday Blitz"]
[Site "Chess.com"]
[Date "2020.05.12"]
[Round "10"]
[White "Anton_Demchenko"]
[Black "ChessTraining77"]
[Result "1-0"]
[WhiteElo "2807"]
[BlackElo "2544"]
[TimeControl "180+1"]
[EndTime "11:54:05 PDT"]
[Termination "Anton_Demchenko won by resignation"]

1. d4 {[%clk 0:03:00.9]} 1... Nf6 {[%clk 0:02:58.6]} 2. Nf3 {[%clk 0:03:01.4]}
2... d5 {[%clk 0:02:57.3]} 3. Bf4 {[%clk 0:03:01.4]} 3... c5 {[%clk 0:02:57.2]}
4. e3 {[%clk 0:03:01.8]} 4... Nc6 {[%clk 0:02:57.2]} 5. Nbd2 {[%clk 0:03:02.3]}
5... cxd4 {[%clk 0:02:55.9]} 6. exd4 {[%clk 0:03:03.2]} 6... Bf5 {[%clk
0:02:55.8]} 7. Bb5 {[%clk 0:03:02.6]} 7... e6 {[%clk 0:02:53.2]} 8. Ne5 {[%clk
0:02:55.9]} 8... a6 {[%clk 0:02:38]} 9. Bxc6+ {[%clk 0:02:43.4]} 9... bxc6
{[%clk 0:02:36.7]} 10. g4 {[%clk 0:02:43.8]} 10... Bg6 {[%clk 0:02:23.5]} 11. h4
{[%clk 0:02:43.9]} 11... h5 {[%clk 0:02:12.6]} 12. g5 {[%clk 0:02:43.7]} 12...
Nd7 {[%clk 0:02:10.6]} 13. Nxg6 {[%clk 0:02:43.6]} 13... fxg6 {[%clk 0:02:10.1]}
14. Qe2 {[%clk 0:02:41.2]} 14... Kf7 {[%clk 0:02:06.2]} 15. O-O-O {[%clk
0:02:41.5]} 15... Bb4 {[%clk 0:01:59.3]} 16. c3 {[%clk 0:02:39.4]} 16... Ba5
{[%clk 0:01:57.5]} 17. Qf3 {[%clk 0:02:24.1]} 17... Kg8 {[%clk 0:01:53]} 18.
Rde1 {[%clk 0:02:03.1]} 18... Nf8 {[%clk 0:01:40.6]} 19. Qg3 {[%clk 0:02:03.5]}
19... Kh7 {[%clk 0:01:38.2]} 20. Bd6 {[%clk 0:01:54.2]} 20... Qd7 {[%clk
0:01:36.9]} 21. Re2 {[%clk 0:01:44.7]} 21... Qf7 {[%clk 0:01:31.9]} 22. Rhe1
{[%clk 0:01:40.5]} 22... Re8 {[%clk 0:01:31]} 23. Re3 {[%clk 0:01:36.1]} 23...
Qf5 {[%clk 0:01:10.6]} 24. Rf3 {[%clk 0:01:28.4]} 24... Qg4 {[%clk 0:01:10.1]}
25. Rf7 {[%clk 0:01:28.4]} 25... e5 {[%clk 0:01:04.1]} 26. Bxe5 {[%clk
0:00:48.7]} 26... Ne6 {[%clk 0:01:03.5]} 27. Qxg4 {[%clk 0:00:33.1]} 27... hxg4
{[%clk 0:01:02.4]} 28. Ra7 {[%clk 0:00:16]} 28... Ra8 {[%clk 0:00:51.6]} 29.
Rxa8 {[%clk 0:00:08.4]} 29... Rxa8 {[%clk 0:00:49.5]} 30. Rg1 {[%clk 0:00:09.3]}
30... Rf8 {[%clk 0:00:47.6]} 31. Rg2 {[%clk 0:00:08.1]} 31... Nf4 {[%clk
0:00:38.3]} 32. Bxf4 {[%clk 0:00:08]} 32... Rxf4 {[%clk 0:00:38.4]} 33. Kd1
{[%clk 0:00:08.9]} 33... Bc7 {[%clk 0:00:36.7]} 34. Ke2 {[%clk 0:00:09]} 34...
Kg8 {[%clk 0:00:35.3]} 35. Nf1 {[%clk 0:00:08.9]} 35... Re4+ {[%clk 0:00:33.1]}
36. Ne3 {[%clk 0:00:09.4]} 36... g3 {[%clk 0:00:31.3]} 37. fxg3 {[%clk
0:00:09.6]} 37... Kf7 {[%clk 0:00:31.4]} 38. Kf3 {[%clk 0:00:09.9]} 38... Ke6
{[%clk 0:00:30.4]} 39. Re2 {[%clk 0:00:08.8]} 39... Bd6 {[%clk 0:00:26.4]} 40.
a4 {[%clk 0:00:08.7]} 40... c5 {[%clk 0:00:25.6]} 41. dxc5 {[%clk 0:00:07.4]}
41... Bxc5 {[%clk 0:00:25.8]} 42. Nxd5 {[%clk 0:00:06.1]} 42... Rxe2 {[%clk
0:00:22.1]} 43. Nf4+ {[%clk 0:00:06.5]} 43... Ke5 {[%clk 0:00:21.4]} 44. Nxe2
{[%clk 0:00:06.8]} 44... Kd5 {[%clk 0:00:21.9]} 45. b3 {[%clk 0:00:06.3]} 45...
Ba3 {[%clk 0:00:21]} 46. Nf4+ {[%clk 0:00:06.6]} 46... Ke5 {[%clk 0:00:20.4]}
47. Nxg6+ {[%clk 0:00:07]} 1-0